fUST/lending_fUST_20250219
["ID","MTS","AMOUNT","RATE_DAILY","PERIOD"]
[353644346,1739980238693,-275.55,0.00013698,2]
[353644348,1739980238703,-500.0,0.00013698,2]
[353644350,1739980238712,-506.39,0.00013698,2]
[353644352,1739980238722,-204.82,0.00013698,2]
[353644354,1739980238731,-500.0,0.00013698,2]
[353644356,1739980238740,-500.0,0.00013698,2]
[353644358,1739980238750,-906.74,0.00013698,2]
[353644360,1739980238759,-500.0,0.00013698,2]
[353644362,1739980238771,-500.0,0.00013698,2]
[353644364,1739980238781,-500.0,0.00013698,2]
[353644366,1739980238790,-502.82259544,0.00013698,2]
[353644368,1739980238799,-500.0,0.00013698,2]
[353644370,1739980238812,-500.0,0.00013698,2]
[353644372,1739980238823,-500.0,0.00013698,2]
[353644374,1739980238834,-500.0,0.00013698,2]
[353644376,1739980238844,-12029.31,0.00013698,2]
[353644378,1739980238855,-500.0,0.00013698,2]
[353644380,1739980238864,-1583.46,0.00013698,2]
[353644382,1739980238873,-500.0,0.00013698,2]
[353644384,1739980238883,-500.0,0.00013698,2]
[353644386,1739980238895,-500.0,0.00013698,2]
[353644388,1739980238905,-500.0,0.00013698,2]
[353644391,1739980238915,-500.0,0.00013698,2]
[353644392,1739980238924,-500.0,0.00013698,2]
[353644394,1739980238933,-303.95570992,0.00013698,2]
[353644397,1739980238943,-500.0,0.00013698,2]
[353644399,1739980238952,-592.82381836,0.00013698,2]
[353644400,1739980238962,-500.0,0.00013698,2]
[353644402,1739980238971,-500.0,0.00013698,2]
[353644404,1739980238981,-500.0,0.00013698,2]
[353644406,1739980238990,-369.4019491,0.00013698,2]
[353644408,1739980239000,-500.0,0.00013698,2]
[353644411,1739980239010,-500.0,0.00013698,2]
[353644412,1739980239021,-500.0,0.00013698,2]
[353644414,1739980239030,-500.0,0.00013698,2]
[353644417,1739980239040,-1188.37,0.00013698,2]
[353644419,1739980239049,-5134.26,0.00013698,2]
[353644421,1739980239059,-1415.39,0.00013698,2]
[353644423,1739980239069,-500.0,0.00013698,2]
[353644425,1739980239078,-500.0,0.00013698,2]
[353644427,1739980239088,-500.0,0.00013698,2]
[353644429,1739980239098,-500.0,0.00013698,2]
[353644431,1739980239107,-4172.37,0.00013698,2]
[353644433,1739980239117,-500.0,0.00013698,2]
[353644435,1739980239126,-587.98,0.00013698,2]
[353644436,1739980239136,-500.0,0.00013698,2]
[353644438,1739980239145,-500.0,0.00013698,2]
[353644439,1739980239154,-287.2,0.00013698,2]
[353644441,1739980239163,-3853.92,0.00013698,2]
[353644443,1739980239173,-500.0,0.00013698,2]
[353644446,1739980239183,-500.0,0.00013698,2]
[353644447,1739980239193,-500.0,0.00013698,2]
[353644450,1739980239203,-500.0,0.00013698,2]
[353644451,1739980239212,-745.9,0.00013698,2]
[353644454,1739980239222,-500.0,0.00013698,2]
[353644456,1739980239232,-1538.8,0.00013698,2]
[353644457,1739980239241,-1141.97,0.00013698,2]
[353644459,1739980239251,-500.0,0.00013698,2]
[353644461,1739980239260,-500.0,0.00013698,2]
[353644463,1739980239270,-335.61209086,0.00013698,2]
[353644465,1739980239280,-500.0,0.00013698,2]
[353644467,1739980239290,-500.0,0.00013698,2]
[353644469,1739980239299,-1269.61,0.00013698,2]
[353644471,1739980239308,-500.0,0.00013698,2]
[353644473,1739980239317,-500.0,0.00013698,2]
[353644474,1739980239327,-169.837394,0.00013699,2]
[353644475,1739980239337,-169.359874,0.00013699,2]
[353644476,1739980239347,-500.0,0.0001378,2]
[353644477,1739980239357,-500.0,0.0001378,2]
[353644478,1739980239366,-500.0,0.0001378,2]
[353644479,1739980239376,-500.0,0.0001378,2]
[353644480,1739980239386,-500.0,0.0001378,2]
[353644481,1739980239396,-500.0,0.0001378,2]
[353644482,1739980239405,-500.0,0.0001378,2]
[353644483,1739980239415,-500.0,0.0001378,2]
[353644484,1739980239425,-500.0,0.0001378,2]
[353644485,1739980239435,-500.0,0.0001378,2]
[353644486,1739980239444,-500.0,0.0001378,2]
[353644487,1739980239454,-906.74,0.0001378,2]
[353644488,1739980239463,-500.0,0.0001378,2]
[353644489,1739980239473,-470.17,0.0001378,2]
[353644490,1739980239483,-500.0,0.0001378,2]
[353644491,1739980239493,-12029.31,0.0001378,2]
[353644492,1739980239502,-1583.46,0.0001378,2]
[353644493,1739980239512,-500.0,0.0001378,2]
[353644494,1739980239523,-500.0,0.0001378,2]
[353644495,1739980239533,-500.0,0.0001378,2]
[353644496,1739980239543,-500.0,0.0001378,2]
[353644497,1739980239553,-500.0,0.0001378,2]
[353644498,1739980239563,-500.0,0.0001378,2]
[353644499,1739980239573,-1188.37,0.0001378,2]
[353644500,1739980239583,-5134.26,0.0001378,2]
[353644501,1739980239594,-1415.39,0.0001378,2]
[353644502,1739980239605,-500.0,0.0001378,2]
[353644504,1739980239615,-500.0,0.0001378,2]
[353644506,1739980239625,-500.0,0.0001378,2]
[353644508,1739980239634,-4172.37,0.0001378,2]
[353644510,1739980239644,-500.0,0.0001378,2]
[353644512,1739980239654,-587.98,0.0001378,2]
[353644514,1739980239664,-3853.92,0.0001378,2]
[353644516,1739980239673,-500.0,0.0001378,2]
[353644518,1739980239684,-500.0,0.0001378,2]
[353644520,1739980239694,-500.0,0.0001378,2]
[353644522,1739980239703,-745.9,0.0001378,2]
[353644524,1739980239713,-1538.8,0.0001378,2]
[353644526,1739980239722,-1141.97,0.0001378,2]
[353644528,1739980239732,-448.81009863,0.0001378,2]
[353644531,1739980239743,-500.0,0.0001378,2]
[353644533,1739980239752,-1269.61,0.0001378,2]
[353644535,1739980239762,-181.55312914,0.0001378,2]
[353644537,1739980239771,-151.0,0.000138,2]
[353644539,1739980239781,-151.0,0.000138,2]
[353644541,1739980239790,-500.0,0.00013863,2]
[353644543,1739980239800,-500.0,0.00013863,2]
[353644545,1739980239812,-500.0,0.00013863,2]
[353644547,1739980239823,-500.0,0.00013863,2]
[353644549,1739980239831,-451.02,0.00013863,2]
[353644551,1739980239841,-500.0,0.00013863,2]
[353644553,1739980239850,-500.0,0.00013863,2]
[353644555,1739980239862,-500.0,0.00013863,2]
[353644557,1739980239871,-500.0,0.00013863,2]
[353644559,1739980239880,-500.0,0.00013863,2]
[353644561,1739980239892,-500.0,0.00013863,2]
[353644563,1739980239902,-906.74,0.00013863,2]
[353644565,1739980239911,-500.0,0.00013863,2]
[353644567,1739980239920,-500.0,0.00013863,2]
[353644569,1739980239930,-12029.31,0.00013863,2]
[353644571,1739980239939,-1583.46,0.00013863,2]
[353644573,1739980239949,-500.0,0.00013863,2]
[353644575,1739980239959,-500.0,0.00013863,2]
[353644577,1739980239969,-500.0,0.00013863,2]
[353644579,1739980239979,-500.0,0.00013863,2]
[353644581,1739980239989,-500.0,0.00013863,2]
[353644583,1739980239998,-1188.37,0.00013863,2]
[353644585,1739980240008,-5134.26,0.00013863,2]
[353644588,1739980240017,-1415.39,0.00013863,2]
[353644591,1739980240028,-500.0,0.00013863,2]
[353644594,1739980240038,-500.0,0.00013863,2]
[353644596,1739980240047,-500.0,0.00013863,2]
[353644598,1739980240058,-4172.37,0.00013863,2]
[353644600,1739980240068,-500.0,0.00013863,2]
[353644602,1739980240077,-587.98,0.00013863,2]
[353644604,1739980240087,-3853.92,0.00013863,2]
[353644606,1739980240096,-500.0,0.00013863,2]
[353644608,1739980240106,-500.0,0.00013863,2]
[353644610,1739980240116,-500.0,0.00013863,2]
[353644612,1739980240126,-745.9,0.00013863,2]
[353644615,1739980240142,-1538.8,0.00013863,2]
[353644617,1739980240155,-1141.97,0.00013863,2]
[353644620,1739980240166,-500.0,0.00013863,2]
[353644622,1739980240176,-1269.61,0.00013863,2]
[353644624,1739980240187,-151.0,0.000139,2]
[353644626,1739980240196,-151.0,0.000139,2]
[353644628,1739980240206,-151.0,0.000139,2]
[353644630,1739980240216,-500.0,0.00013945,2]
[353644632,1739980240226,-500.0,0.00013945,2]
[353644634,1739980240236,-500.0,0.00013945,2]
[353644636,1739980240246,-500.0,0.00013945,2]
[353644638,1739980240256,-500.0,0.00013945,2]
[353644640,1739980240265,-500.0,0.00013945,2]
[353644642,1739980240276,-500.0,0.00013945,2]
[353644644,1739980240285,-500.0,0.00013945,2]
[353644646,1739980240296,-500.0,0.00013945,2]
[353644648,1739980240306,-500.0,0.00013945,2]
[353644650,1739980240316,-906.74,0.00013945,2]
[353644652,1739980240326,-500.0,0.00013945,2]
[353644654,1739980240336,-500.0,0.00013945,2]
[353644656,1739980240346,-12029.31,0.00013945,2]
[353644658,1739980240356,-660.25739122,0.00013945,2]
[353644662,1739980240382,-923.20260878,0.00013945,2]
[353644664,1739980240392,-500.0,0.00013945,2]
[353644666,1739980240402,-500.0,0.00013945,2]
[353644667,1739980240413,-500.0,0.00013945,2]
[353644668,1739980240423,-324.78,0.00013945,2]
[353644669,1739980240433,-1188.37,0.00013945,2]
[353644670,1739980240442,-5134.26,0.00013945,2]
[353644671,1739980240452,-1415.39,0.00013945,2]
[353644672,1739980240463,-500.0,0.00013945,2]
[353644673,1739980240473,-500.0,0.00013945,2]
[353644674,1739980240483,-500.0,0.00013945,2]
[353644675,1739980240494,-4172.37,0.00013945,2]
[353644676,1739980240505,-500.0,0.00013945,2]
[353644677,1739980240515,-587.98,0.00013945,2]
[353644678,1739980240525,-3853.92,0.00013945,2]
[353644679,1739980240535,-500.0,0.00013945,2]
[353644680,1739980240545,-500.0,0.00013945,2]
[353644681,1739980240555,-500.0,0.00013945,2]
[353644682,1739980240565,-745.9,0.00013945,2]
[353644683,1739980240575,-1538.8,0.00013945,2]
[353644684,1739980240585,-1141.97,0.00013945,2]
[353644685,1739980240595,-398.1081591,0.00013945,2]
[353644686,1739980240606,-1269.61,0.00013945,2]
[353644687,1739980240616,-500.0,0.00013972,2]
[353644688,1739980240626,-151.0,0.00014,2]
[353644689,1739980240636,-1000.0,0.00014,14]
[353644690,1739980240646,-1000.0,0.00014,3]
[353644691,1739980240656,-151.0,0.00014,2]
[353644692,1739980240666,-151.0,0.00014,2]
[353644693,1739980240677,-151.0,0.00014,2]
[353644694,1739980240686,-192.0,0.00014005,2]
[353644695,1739980240696,-500.0,0.00014027,2]
[353644696,1739980240706,-500.0,0.00014027,2]
[353644697,1739980240716,-500.0,0.00014027,2]
[353644698,1739980240726,-500.0,0.00014027,2]
[353644699,1739980240736,-535.32,0.00014027,2]
[353644700,1739980240746,-500.0,0.00014027,2]
[353644701,1739980240755,-500.0,0.00014027,2]
[353644702,1739980240765,-500.0,0.00014027,2]
[353644703,1739980240776,-173.43,0.00014027,2]
[353644704,1739980240787,-906.74,0.00014027,2]
[353644705,1739980240797,-500.0,0.00014027,2]
[353644706,1739980240806,-12029.31,0.00014027,2]
[353644707,1739980240817,-1583.46,0.00014027,2]
[353644708,1739980240826,-500.0,0.00014027,2]
[353644709,1739980240836,-272.71892472,0.00014027,2]
[353644710,1739980240844,-500.0,0.00014027,2]
[353644711,1739980240855,-1188.37,0.00014027,2]
[353644712,1739980240864,-5134.26,0.00014027,2]
[353644713,1739980240874,-1415.39,0.00014027,2]
[353644714,1739980241021,-500.0,0.00014027,2]
[353644715,1739980241031,-500.0,0.00014027,2]
[353644716,1739980241041,-500.0,0.00014027,2]
[353644717,1739980241051,-4172.37,0.00014027,2]
[353644718,1739980241060,-500.0,0.00014027,2]
[353644719,1739980241070,-587.98,0.00014027,2]
[353644720,1739980241079,-3853.92,0.00014027,2]
[353644721,1739980241088,-500.0,0.00014027,2]
[353644722,1739980241098,-500.0,0.00014027,2]
[353644723,1739980241107,-500.0,0.00014027,2]
[353644724,1739980241117,-745.9,0.00014027,2]
[353644725,1739980241129,-1538.8,0.00014027,2]
[353644726,1739980241139,-1141.97,0.00014027,2]
[353644727,1739980241149,-1269.61,0.00014027,2]
[353644728,1739980241159,-151.0,0.000141,2]
[353644729,1739980241169,-151.0,0.000141,2]
[353644730,1739980241179,-151.0,0.000141,2]
[353644731,1739980241188,-151.0,0.000141,2]
[353644732,1739980241197,-500.0,0.00014109,2]
[353644733,1739980241207,-500.0,0.00014109,2]
[353644734,1739980241216,-500.0,0.00014109,2]
[353644735,1739980241226,-500.0,0.00014109,2]
[353644736,1739980241236,-500.0,0.00014109,2]
[353644737,1739980241245,-500.0,0.00014109,2]
[353644738,1739980241255,-500.0,0.00014109,2]
[353644739,1739980241264,-906.74,0.00014109,2]
[353644740,1739980241274,-500.0,0.00014109,2]
[353644741,1739980241283,-1583.46,0.00014109,2]
[353644742,1739980241293,-12029.31,0.00014109,2]
[353644743,1739980241302,-500.0,0.00014109,2]
[353644744,1739980241312,-501.25,0.00014109,2]
[353644745,1739980241322,-1188.37,0.00014109,2]
[353644746,1739980241332,-5134.26,0.00014109,2]
[353644747,1739980241342,-1415.39,0.00014109,2]
[353644749,1739980241351,-500.0,0.00014109,2]
[353644751,1739980241360,-500.0,0.00014109,2]
[353644753,1739980241369,-500.0,0.00014109,2]
[353644755,1739980241379,-4172.37,0.00014109,2]
[353644757,1739980241388,-594.34,0.00014109,2]
[353644759,1739980241398,-587.98,0.00014109,2]
[353644761,1739980241408,-3853.92,0.00014109,2]
[353644763,1739980241418,-500.0,0.00014109,2]
[353644764,1739980241427,-500.0,0.00014109,2]
[353644766,1739980241436,-500.0,0.00014109,2]
[353644767,1739980241446,-745.9,0.00014109,2]
[353644768,1739980241457,-1538.8,0.00014109,2]
[353644769,1739980241466,-1141.97,0.00014109,2]
[353644770,1739980241475,-1269.61,0.00014109,2]
[353644771,1739980241485,-500.0,0.00014191,2]
[353644773,1739980241495,-500.0,0.00014191,2]
[353644775,1739980241505,-500.0,0.00014191,2]
[353644777,1739980241515,-500.0,0.00014191,2]
[353644779,1739980241525,-518.47342416,0.00014191,2]
[353644781,1739980241535,-500.0,0.00014191,2]
[353644783,1739980241545,-219.64,0.00014191,2]
[353644785,1739980241555,-906.74,0.00014191,2]
[353644787,1739980241565,-500.0,0.00014191,2]
[353644789,1739980241574,-1583.46,0.00014191,2]
[353644791,1739980241584,-12029.31,0.00014191,2]
[353644793,1739980241594,-500.0,0.00014191,2]
[353644795,1739980241604,-1188.37,0.00014191,2]
[353644797,1739980241613,-5134.26,0.00014191,2]
[353644799,1739980241623,-1415.39,0.00014191,2]
[353644801,1739980241632,-500.0,0.00014191,2]
[353644803,1739980241641,-500.0,0.00014191,2]
[353644805,1739980241651,-500.0,0.00014191,2]
[353644808,1739980241660,-4172.37,0.00014191,2]
[353644810,1739980241670,-587.98,0.00014191,2]
[353644812,1739980241680,-3853.92,0.00014191,2]
[353644814,1739980241691,-500.0,0.00014191,2]
[353644816,1739980241700,-500.0,0.00014191,2]
[353644817,1739980241710,-500.0,0.00014191,2]
[353644818,1739980241719,-745.9,0.00014191,2]
[353644819,1739980241729,-1538.8,0.00014191,2]
[353644820,1739980241739,-1141.97,0.00014191,2]
[353644821,1739980241749,-1269.61,0.00014191,2]
[353644822,1739980241759,-151.0,0.000142,2]
[353644823,1739980241768,-151.0,0.000142,2]
[353644824,1739980241779,-422.29,0.00014273,2]
[353644825,1739980241789,-500.0,0.00014273,2]
[353644826,1739980241799,-500.0,0.00014273,2]
[353644827,1739980241810,-500.0,0.00014273,2]
[353644828,1739980241823,-500.0,0.00014273,2]
[353644829,1739980241832,-906.74,0.00014273,2]
[353644830,1739980241843,-500.0,0.00014273,2]
[353644831,1739980241854,-1583.46,0.00014273,2]
[353644832,1739980241864,-12029.31,0.00014273,2]
[353644833,1739980241874,-500.0,0.00014273,2]
[353644834,1739980241883,-1188.37,0.00014273,2]
[353644835,1739980241894,-5134.26,0.00014273,2]
[353644836,1739980241904,-1415.39,0.00014273,2]
[353644837,1739980241914,-500.0,0.00014273,2]
[353644838,1739980241923,-500.0,0.00014273,2]
[353644839,1739980241933,-529.46,0.00014273,2]
[353644840,1739980241942,-4172.37,0.00014273,2]
[353644841,1739980241951,-587.98,0.00014273,2]
[353644842,1739980241961,-3853.92,0.00014273,2]
[353644843,1739980241971,-500.0,0.00014273,2]
[353644844,1739980241980,-500.0,0.00014273,2]
[353644845,1739980241990,-500.0,0.00014273,2]
[353644846,1739980241998,-745.9,0.00014273,2]
[353644847,1739980242008,-1538.8,0.00014273,2]
[353644848,1739980242017,-1141.97,0.00014273,2]
[353644849,1739980242028,-1269.61,0.00014273,2]
[353644850,1739980242038,-151.0,0.000143,2]
[353644851,1739980242047,-151.0,0.000143,2]
[353644852,1739980242057,-151.0,0.000143,2]
[353644853,1739980242066,-151.0,0.000143,2]
[353644854,1739980242076,-417.07256358,0.00014338,2]
[353644855,1739980242085,-500.0,0.00014356,2]
[353644856,1739980242094,-500.0,0.00014356,2]
[353644857,1739980242104,-500.0,0.00014356,2]
[353644858,1739980242113,-500.0,0.00014356,2]
[353644859,1739980242123,-906.74,0.00014356,2]
[353644860,1739980242132,-157.77,0.00014356,2]
[353644861,1739980242141,-1583.46,0.00014356,2]
[353644862,1739980242150,-12029.31,0.00014356,2]
[353644863,1739980242159,-500.0,0.00014356,2]
[353644864,1739980242169,-1188.37,0.00014356,2]
[353644865,1739980242178,-5134.26,0.00014356,2]
[353644866,1739980242188,-1415.39,0.00014356,2]
[353644867,1739980242197,-500.0,0.00014356,2]
[353644868,1739980242207,-500.0,0.00014356,2]
[353644869,1739980242216,-4172.37,0.00014356,2]
[353644870,1739980242225,-587.98,0.00014356,2]
[353644871,1739980242235,-3853.92,0.00014356,2]
[353644872,1739980242244,-500.0,0.00014356,2]
[353644873,1739980242253,-250.75,0.00014356,2]
[353644874,1739980242261,-557.18736973,0.00014356,2]
[353644875,1739980242271,-745.9,0.00014356,2]
[353644876,1739980242280,-1538.8,0.00014356,2]
[353644877,1739980242290,-1141.97,0.00014356,2]
[353644878,1739980242299,-1269.61,0.00014356,2]
[353644879,1739980242308,-151.0,0.000144,2]
[353644880,1739980242318,-151.0,0.000144,2]
[353644881,1739980242327,-179.74835231,0.000144,2]
[353644882,1739980242337,-500.0,0.00014438,2]
[353644883,1739980242346,-500.0,0.00014438,2]
[353644884,1739980242355,-500.0,0.00014438,2]
[353644885,1739980242365,-500.0,0.00014438,2]
[353644886,1739980242374,-906.74,0.00014438,2]
[353644887,1739980242383,-1583.46,0.00014438,2]
[353644888,1739980242393,-12029.31,0.00014438,2]
[353644889,1739980242403,-500.0,0.00014438,2]
[353644890,1739980242412,-1188.37,0.00014438,2]
[353644891,1739980242421,-5134.26,0.00014438,2]
[353644892,1739980242431,-1415.39,0.00014438,2]
[353644893,1739980242440,-500.0,0.00014438,2]
[353644894,1739980242450,-500.0,0.00014438,2]
[353644895,1739980242460,-4172.37,0.00014438,2]
[353644896,1739980242469,-587.98,0.00014438,2]
[353644897,1739980242479,-3853.92,0.00014438,2]
[353644898,1739980242488,-500.0,0.00014438,2]
[353644899,1739980242499,-745.9,0.00014438,2]
[353644900,1739980242508,-1538.8,0.00014438,2]
[353644901,1739980242518,-1141.97,0.00014438,2]
[353644902,1739980242528,-1269.61,0.00014438,2]
[353644903,1739980242538,-151.0,0.000145,2]
[353644904,1739980242547,-151.0,0.000145,2]
[353644905,1739980242557,-151.0,0.000145,2]
[353644906,1739980242566,-151.0,0.000145,2]
[353644907,1739980242576,-500.0,0.0001452,2]
[353644908,1739980242585,-500.0,0.0001452,2]
[353644909,1739980242595,-500.0,0.0001452,2]
[353644910,1739980242604,-500.0,0.0001452,2]
[353644911,1739980242613,-906.74,0.0001452,2]
[353644912,1739980242623,-1583.46,0.0001452,2]
[353644913,1739980242632,-12029.31,0.0001452,2]
[353644914,1739980242642,-500.0,0.0001452,2]
[353644915,1739980242651,-1188.37,0.0001452,2]
[353644916,1739980242661,-5134.26,0.0001452,2]
[353644917,1739980242671,-1415.39,0.0001452,2]
[353644918,1739980242680,-500.0,0.0001452,2]
[353644919,1739980242690,-500.0,0.0001452,2]
[353644920,1739980242699,-4172.37,0.0001452,2]
[353644921,1739980242709,-587.98,0.0001452,2]
[353644922,1739980242719,-3853.92,0.0001452,2]
[353644923,1739980242729,-500.0,0.0001452,2]
[353644924,1739980242738,-745.9,0.0001452,2]
[353644925,1739980242748,-1538.8,0.0001452,2]
[353644926,1739980242757,-1141.97,0.0001452,2]
[353644927,1739980242767,-1269.61,0.0001452,2]
[353644928,1739980242776,-2223.42860848,0.00014584,2]
[353644929,1739980242787,-151.0,0.000146,2]
[353644931,1739980242796,-151.0,0.000146,2]
[353644933,1739980242805,-151.0,0.000146,2]
[353644935,1739980242817,-500.0,0.00014602,2]
[353644937,1739980242827,-500.0,0.00014602,2]
[353644939,1739980242837,-500.0,0.00014602,2]
[353644941,1739980242846,-500.0,0.00014602,2]
[353644942,1739980242857,-906.74,0.00014602,2]
[353644943,1739980242867,-1583.46,0.00014602,2]
[353644944,1739980242876,-12029.31,0.00014602,2]
[353644945,1739980242886,-347.53,0.00014602,2]
[353644946,1739980242897,-1188.37,0.00014602,2]
[353644947,1739980242907,-5134.26,0.00014602,2]
[353644948,1739980242917,-1415.39,0.00014602,2]
[353644949,1739980242926,-437.62377949,0.00014602,2]
[353644950,1739980242936,-500.0,0.00014602,2]
[353644951,1739980242945,-4172.37,0.00014602,2]
[353644952,1739980242954,-587.98,0.00014602,2]
[353644953,1739980242964,-3853.92,0.00014602,2]
[353644954,1739980242977,-332.09,0.00014602,2]
[353644955,1739980242987,-745.9,0.00014602,2]
[353644956,1739980242996,-1538.8,0.00014602,2]
[353644957,1739980243006,-1141.97,0.00014602,2]
[353644958,1739980243016,-1269.61,0.00014602,2]
[353644959,1739980243026,-436.46,0.00014684,2]
[353644960,1739980243035,-500.0,0.00014684,2]
[353644961,1739980243044,-500.0,0.00014684,2]
[353644962,1739980243054,-366.83745205,0.00014684,2]
[353644963,1739980243063,-906.74,0.00014684,2]
[353644964,1739980243073,-1583.46,0.00014684,2]
[353644965,1739980243177,-12029.31,0.00014684,2]
[353644966,1739980243187,-1188.37,0.00014684,2]
[353644967,1739980243196,-5134.26,0.00014684,2]
[353644968,1739980243205,-1415.39,0.00014684,2]
[353644969,1739980243215,-500.0,0.00014684,2]
[353644970,1739980243224,-4172.37,0.00014684,2]
[353644971,1739980243233,-587.98,0.00014684,2]
[353644972,1739980243243,-3853.92,0.00014684,2]
[353644973,1739980243252,-745.9,0.00014684,2]
[353644974,1739980243262,-1538.8,0.00014684,2]
[353644975,1739980243271,-1141.97,0.00014684,2]
[353644976,1739980243281,-1269.61,0.00014684,2]
[353644977,1739980243290,-151.0,0.000147,2]
[353644978,1739980243300,-151.0,0.000147,2]
[353644979,1739980243309,-151.0,0.000147,2]
[353644980,1739980243318,-657.647,0.00014746,2]
[353644981,1739980243327,-1613.0,0.00014758,2]
[353644982,1739980243337,-500.0,0.00014767,2]
[353644983,1739980243346,-257.27754596,0.00014767,2]
[353644984,1739980243355,-906.74,0.00014767,2]
[353644985,1739980243363,-1583.46,0.00014767,2]
[353644986,1739980243372,-12029.31,0.00014767,2]
[353644987,1739980243382,-1188.37,0.00014767,2]
[353644988,1739980243392,-5134.26,0.00014767,2]
[353644989,1739980243402,-1415.39,0.00014767,2]
[353644990,1739980243411,-500.0,0.00014767,2]
[353644991,1739980243420,-4172.37,0.00014767,2]
[353644992,1739980243430,-587.98,0.00014767,2]
[353644993,1739980243439,-3853.92,0.00014767,2]
[353644994,1739980243449,-745.9,0.00014767,2]
[353644995,1739980243458,-1538.8,0.00014767,2]
[353644996,1739980243468,-1141.97,0.00014767,2]
[353644997,1739980243477,-1269.61,0.00014767,2]
[353644998,1739980243487,-151.0,0.000148,2]
[353644999,1739980243496,-151.0,0.000148,2]
[353645000,1739980243505,-153.36348279,0.000148,2]
[353645001,1739980243515,-153.36348279,0.000148,2]
[353645002,1739980243525,-153.36348279,0.000148,2]
[353645003,1739980243535,-153.36348279,0.000148,2]
[353645004,1739980243544,-153.36348279,0.000148,2]
[353645005,1739980243554,-153.36348279,0.000148,2]
[353645006,1739980243563,-153.36,0.000148,2]
[353645007,1739980243572,-152.53437279,0.000148,2]
[353645008,1739980243582,-152.53437279,0.000148,2]
[353645009,1739980243592,-152.53437279,0.000148,2]
[353645010,1739980243601,-152.53437279,0.000148,2]
[353645011,1739980243610,-152.53437279,0.000148,2]
[353645012,1739980243619,-152.53437279,0.000148,2]
[353645013,1739980243627,-152.53437279,0.000148,2]
[353645014,1739980243637,-152.53437279,0.000148,2]
[353645015,1739980243647,-152.53437279,0.000148,2]
[353645016,1739980243656,-152.53437279,0.000148,2]
[353645017,1739980243665,-152.53437279,0.000148,2]
[353645018,1739980243675,-152.53437279,0.000148,2]
[353645019,1739980243684,-152.53437279,0.000148,2]
[353645020,1739980243694,-152.53437279,0.000148,2]
[353645021,1739980243703,-152.53437279,0.000148,2]
[353645022,1739980243712,-152.53437279,0.000148,2]
[353645023,1739980243721,-152.53,0.000148,2]
[353645024,1739980243731,-151.0,0.000148,2]
[353645025,1739980243740,-2213.16577602,0.00014831,2]
[353645026,1739980243749,-500.0,0.00014849,2]
[353645027,1739980243759,-906.74,0.00014849,2]
[353645028,1739980243768,-1583.46,0.00014849,2]
[353645029,1739980243779,-12029.31,0.00014849,2]
[353645030,1739980243789,-1188.37,0.00014849,2]
[353645031,1739980243799,-5134.26,0.00014849,2]
[353645032,1739980243808,-1415.39,0.00014849,2]